Workbook

Sheet INSTRUCTIONS
A2: Review the information in the green section – to change specific values, enter your own values in the dark green cells
A3: NUMBER OF DOES = the total number of does currently in your operation
A4: DOES PER ACRE = carrying capacity of your operation (total number of does divided by total number of pasture acres)
A5: CULLING RATE (DOES) = total number of does culled each year as a percent of total number of does (number of does culled each year divided by total number of does in operation)
A6: DEATH LOSS (DOES & KIDS) = total number of does and kids that die from birth through marketing
A7: LABOR (HOURS/DOE) = number of hours for paid labor per doe owned per year
A8: AVERAGE DOE WEIGHT (LBS) = the average body weight of does owned (pounds)
A9: NUMBER OF BUCKS = total number of bucks in the operation (recommended: 1 buck per 25 does)
A10: AVG. AMOUNT OF FEED FED/HEAD/DAY (BUCKS) = the average number of pounds of feed fed to bucks per day (breeding and confinement)
A11: AVG. AMOUNT OF HAY FED/HEAD/DAY (BUCKS) = the average number of pounds of hay fed to bucks per day (breeding and confinement)
A12: NUMBER OF DAYS FEED & HAY IS FED (BUCKS) = total number of days bucks are fed feed and hay during the year (breeding and confinement)
A13: DOES KEPT FOR REPLACEMENT = number of does kept from the kid crop for replacement in the operation
A14: AMOUNT FINANCED = total amount of money borrowed to fund the operation
A15: ANNUAL INTEREST RATE = annualized interest rate of money borrowed
A16: AVG. AMOUNT OF HAY FED/HEAD/DAY (DOES) = the average number of pounds of hay fed to does each day while hay is provided
A17: NUMBER OF DAYS HAY IS FED (DOES) = the number of days hay is fed to does during the year
A18: AVG. AMOUNT OF FEED FED/HEAD/DAY (DOES) = the average number of pounds of feed fed to does each day while feed is provided
A19: NUMBER OF DAYS FEED IS FED (DOES) = the number of days feed is fed to does during the year
A20: KIDS WEANED/DOE = average number of kids weaned per doe each year (total number of kids born divided by the total number of does)
A21: DAYS OF CREEP FEEDING (KIDS) = total number of days kids are provided creep feed during the year
A22: LBS CREEP FEED FED/HEAD/DAY (KIDS) = average pounds of feed provided to kids each day by way of creep feeding
A23: AVG. KID SALE WEIGHT (LBS) = average weight of kids sold at market
A24: DOE VALUE ($/HEAD) = average value of each doe in the operation
A25: BUCK VALUE ($/HEAD) = average value of each buck in the operation
A26: MARKET KID PRICE ($/LB) = average price per pound for all market kids sold
A27: CULL DOE PRICE ($/LB) = average price per pound for all does sold as culls
A29: OPTIONAL: Review the prices in the orange cells under “Direct Expenses” section – to change specific prices, enter your own values in these cells
A30: Supplemental Feed (does) = cost per pound for the feed that is provided to does
A31: Creep Feed (kids) = cost per pound for the feed provided to kids (as a creep feed)
A32: Hay = cost per round bale for hay
A33: -- If feeding square bales: one round bale equals approximately 17 square bales. To calculate hay cost multiply individual square bale cost times 17.
A34: Salt & Mineral = cost per pound of salt and/or mineral provided during the year
A35: Vet & Medicine = cost per head of all vet and medical supplies provided to does and buck during the year
A36: Deworming – breeding stock = cost per single dose to deworm breeding stock
A37: Deworming – kids = cost per single dose to deworm kids
A38: Vaccinations – breeding stock = cost per single dose to vaccinate breeding stock
A39: Vaccinations – kids = cost per single dose to vaccinate kids
A40: Hired Labor = cost per hour for hired help
A41: Marketing Expenses = cost per head to market all goats sold from the operation each year (include yardage and commission)

Sheet Goat_Budget
A1: Meat Goat Production Budget
A2: Mississippi, 2013
A5: ASSUMPTIONS USED IN BUDGET:
B6: 25 | C6: NUMBER OF DOES | F6: 3.5 | G6: AVG. AMOUNT OF HAY FED/HEAD/DAY (DOES)
B7: 6 | C7: DOES PER ACRE | F7: 150 | G7: NUMBER OF DAYS HAY IS FED (DOES)
B8: 0.15 | C8: CULLING RATE (DOES) | F8: 0.8 | G8: AVG. AMOUNT OF FEED FED/HEAD/DAY (DOES)
B9: 0.18 | C9: DEATH LOSS (DOES & KIDS) | F9: 60 | G9: NUMBER OF DAYS FEED IS FED (DOES)
B10: 0.5 | C10: LABOR (HOURS/DOE) | F10: 1.5 | G10: KIDS WEANED/DOE
B11: 130 | C11: AVG. DOE WEIGHT (LBS) | F11: 60 | G11: DAYS OF CREEP FEEDING (KIDS)
B12: 1 | C12: NUMBER OF BUCKS | F12: 0.5 | G12: LBS CREEP FEED FED/HEAD/DAY (KIDS)
B13: 2 | C13: AVG. AMOUNT OF FEED FED/HEAD/DAY (BUCKS) | F13: 75 | G13: AVG. KID SALE WEIGHT (LBS)
B14: 4 | C14: AVG. AMOUNT OF HAY FED/HEAD/DAY (BUCKS) | F14: 120 | G14: DOE VALUE ($/HEAD)
B15: 250 | C15: NUMBER OF DAYS FEED & HAY IS FED (BUCKS) | F15: 250 | G15: BUCK VALUE ($/HEAD)
B16: 0 | C16: DOES KEPT FOR REPLACEMENT | F16: 1.5 | G16: MARKET KID PRICE ($/LB)
B17: 0 | C17: AMOUNT FINANCED | F17: 0.6 | G17: CULL DOE PRICE ($/LB)
B18: 0.065 | C18: ANNUAL INTEREST RATE
A19: CURRENT BREEDING STOCK VALUE
B20: Doe Purchase | F20: head | G20: =B6 -> 25 | H20: =F14 -> 120 | I20: =H20*G20 -> 3000
B21: Buck Purchase | F21: head | G21: =B12 -> 1 | H21: =F15 -> 250 | I21: =H21*G21 -> 250
A23: TOTAL BREEDING VALUE | I23: =SUM(I20:I21) -> 3250
H25: Price or Cost | I25: Total | J25: Value/Cost
E26: Head | F26: Unit | G26: Quantity | H26: per Unit | I26: Value/Cost | J26: per Head
A27: INCOME
B28: Market Kids | E28: =TRUNC(B6*F10,0)-B16 -> 37 | F28: lbs | G28: =E28*F13 -> 2775 | H28: =F16 -> 1.5 | I28: =H28*G28 -> 4162.5 | J28: =I28/E$28 -> 112.5
B29: Cull Does | E29: =TRUNC(B6*B8,0) -> 3 | F29: lbs | G29: =E29*B11 -> 390 | H29: =F17 -> 0.6 | I29: =H29*G29 -> 234 | J29: =I29/E$28 -> 6.324324324
A31: GROSS INCOME | I31: =SUM(I28:I29) -> 4396.5 | J31: =I31/B$6 -> 175.86
A33: DIRECT EXPENSES
B34: Pasture Cost | F34: acre | G34: =ROUNDUP((B6/B7),0) -> 5 | H34: =mix_grass_budget!G31 -> 162.664458 | I34: =H34*G34 -> 813.32229 | J34: =I34/B$6 -> 32.5328916
B35: Supplemental Feed (does) | F35: lbs | G35: =B6*F8*F9 -> 1200 | H35: 0.3 | I35: =H35*G35 -> 360 | J35: =I35/B$6 -> 14.4
B36: Creep Feed (kids) | F36: lbs | G36: =E28*(F11*F12) -> 1110 | H36: 0.3 | I36: =H36*G36 -> 333 | J36: =I36/B$6 -> 13.32
B37: Hay | F37: Round Bale | G37: =(F6*B6*F7)/1200 -> 10.9375 | H37: 50 | I37: 546.875 | J37: 21.875
B38: Salt & Mineral | F38: lbs | G38: =2*B6 -> 50 | H38: 0.56 | I38: =H38*G38 -> 28 | J38: 1.12
B39: Vet & Medicine | F39: head | G39: =B6+B12 -> 26 | H39: 6 | I39: 156 | J39: 6.24
B40: Deworming
B41: breeding stock | F41: doses | G41: =2*(B6+B12) -> 52 | H41: 1 | I41: 52 | J41: 2.08
B42: kids | F42: doses | G42: =3*ROUND((B6*F10),0) -> 114 | H42: 0.25 | I42: 28.5 | J42: 1.14
B43: Vaccinations
B44: breeding stock | F44: doses | G44: =2*(B6+B12) -> 52 | H44: 0.55 | I44: 28.6 | J44: 1.144
B45: kids | F45: doses | G45: =2*ROUND((B6*F10),0) -> 76 | H45: 0.6 | I45: 45.6 | J45: 1.824
B46: Hired Labor | F46: hour | G46: =B10*B6 -> 12.5 | H46: 8 | I46: 100 | J46: 4
B47: Misc. Supplies | F47: head | G47: =B6 -> 25 | H47: 1.5 | I47: 37.5 | J47: 1.5
B48: Buck Maintenance Expense | F48: head | G48: =B12 -> 1 | H48: =(B12*B13*B15*H35)+((B12*B14*F7*H37)/1200) -> 175 | I48: =H48*G48 -> 175 | J48: 7
B49: Repair & Maint. (Buildings/Equip.) | F49: dollars | I49: =M89 -> 34.39333333 | J49: 1.375733333
B50: Vehicle Fuel & Oil | F50: dollars | I50: =M85+(15*12) -> 215.7142857 | J50: 8.628571429
B51: Buck Replacement | F51: head | G51: =B12/3 -> 0.3333333333 | H51: =F15 -> 250 | I51: =H51*G51 -> 83.33333333 | J51: 3.333333333
B52: Doe Replacement | F52: head | G52: =TRUNC(B6*B8,0) -> 3 | H52: =F14 -> 120 | I52: =H52*G52 -> 360 | J52: =I52/B$6 -> 14.4
B53: Marketing Expenses | F53: head | G53: =E28+E29 -> 40 | H53: 4 | I53: =H53*G53 -> 160 | J53: 6.4
B54: Yearly Financing Expenses | F54: % | G54: =B18 -> 0.065 | H54: =B17 -> 0 | I54: =H54*G54 -> 0 | J54: 0
A56: TOTAL DIRECT EXPENSES | I56: =SUM(I34:I54) -> 3557.838242 | J56: =I56/B$6 -> 142.3135297
A57: RETURN OVER DIRECT EXPENSES | I57: =I31-I56 -> 838.6617576 | J57: =J31-J56 -> 33.5464703
A59: FIXED EXPENSES
B60: General Overhead | F60: head | G60: =B6 -> 25 | H60: 1.25 | I60: =H60*G60 -> 31.25 | J60: =I60/B$6 -> 1.25
B61: Interest on Buildings and Equip. | F61: % | G61: =G54 -> 0.065 | H61: =G89 -> 3595 | I61: =H61*(G61*(F9/365)) -> 38.41232877 | J61: =I61/B$6 -> 1.536493151
B62: Depreciation | F62: dollars | I62: =L89 -> 193.1261905 | J62: 7.725047619
B63: Taxes & Insurance | F63: dollars | I63: =N89 -> 62.9125 | J63: 2.5165
A65: TOTAL FIXED EXPENSES | I65: =SUM(I60:I63) -> 325.7010192 | J65: =I65/B$6 -> 13.02804077
A67: TOTAL SPECIFIED EXPENSES | I67: =I56+I65 -> 3883.539262 | J67: =I67/B$6 -> 155.3415705
A69: RETURN OVER TOTAL SPECIFIED EXPENSES | I69: =I31-I67 -> 512.9607384 | J69: =I69/B$6 -> 20.51842954
A74: FACILITIES AND EQUIPMENT USED IN DIRECT & FIXED EXPENSE SECTIONS:
B76: ITEM | D76: ESTIMATED | F76: PROPORTION | G76: TOTAL | H76: SALVAGE | I76: YEARS | K76: SALVAGE | N76: TAXES &
D77: COST | E77: NUMBER | F77: CHARGED | G77: CHARGED | H77: VALUE(%) | I77: OF LIFE | K77: VALUE | L77: DEPREC. | M77: REPAIRS | N77: INS.
B80: FENCING | D80: 2300 | E80: 1 | F80: 0.67 | G80: =D80*E80*F80 -> 1541 | H80: 0 | I80: 15 | K80: =(G80*H80) -> 0 | L80: =(AVERAGE(G80,K80)/I80) -> 51.36666667 | M80: =(0.2*G80)/I80 -> 20.54666667 | N80: =0.0175*G80 -> 26.9675
B81: CORRAL | D81: 500 | E81: 1 | F81: 0.67 | G81: =D81*E81*F81 -> 335 | H81: 0 | I81: 15 | K81: =(G81*H81) -> 0 | L81: 11.16666667 | M81: 4.466666667 | N81: 5.8625
B82: FEED BUNK | D82: 250 | E82: 1 | F82: 0.67 | G82: 167.5 | H82: 0 | I82: 10 | K82: 0 | L82: 8.375 | M82: 3.35 | N82: 2.93125
B83: WATER TANK, ETC. | D83: 250 | E83: 1 | F83: 0.67 | G83: 167.5 | H83: 0 | I83: 10 | K83: 0 | L83: 8.375 | M83: 3.35 | N83: 2.93125
B84: MINERAL FEEDER | D84: 200 | E84: 1 | F84: 0.67 | G84: 134 | H84: 0 | I84: 10 | K84: 0 | L84: 6.7 | M84: 2.68 | N84: 2.345
B85: PICKUP | D85: 25000 | E85: 1 | F85: 0.05 | G85: 1250 | H85: 0.2 | I85: 7 | K85: 250 | L85: 107.1428571 | M85: 35.71428571 | N85: 21.875
B89: TOTAL | G89: =SUM(G80:G85) -> 3595 | K89: =SUM(K80:K84) -> 0 | L89: =SUM(L80:L85) -> 193.1261905 | M89: =SUM(M80:M84) -> 34.39333333 | N89: =SUM(N80:N85) -> 62.9125

Sheet mix_grass_budget (hidden)
A1: Table 7.B Estimated costs per acre
A2: Permanent summer pasture maintenance (i.e. bahia,
A3: bermuda, dallisgrass, mixed grasses),Mississippi, 2012
C5: ITEM | D5: UNIT | E5: PRICE | F5: QUANTITY | G5: AMOUNT
A7: DIRECT EXPENSES
B8: FERTILIZER
C9: Fert. 33-0-0-12s | D9: cwt | E9: 19 | F9: 3 | G9: =E9*F9 -> 57
C10: Phosphate (46% P2O5) | D10: cwt | E10: 28.65 | F10: 1 | G10: =E10*F10 -> 28.65
C11: Potash (60% K2O) | D11: cwt | E11: 29.19 | F11: 1 | G11: =E11*F11 -> 29.19
B12: HERBICIDE
C13: GrazonNext | D13: pt | E13: 4.56 | F13: 2 | G13: =E13*F13 -> 9.12
B14: CUSTOM FERT
C15: Custom Spread(Truck) | D15: appl | E15: 7 | F15: 2 | G15: =E15*F15 -> 14
B16: SERVICE FEE
C17: Soil Testing | D17: acre | E17: 0.6 | F17: 1 | G17: 0.6
B18: CUSTOM LIME
C19: Lime (Spread) | D19: ton | E19: 44 | F19: 0.33 | G19: 14.52
B20: OPERATOR LABOR
C21: Tractors | D21: hour | E21: 11.6 | F21: 0.1608 | G21: 1.86528
B22: HAND LABOR
C23: Implements | D23: hour | E23: 9.06 | F23: 0.0313 | G23: 0.283578
B24: DIESEL FUEL
C25: Tractors | D25: gal | E25: 3.6 | F25: 0.621 | G25: 2.2356
B26: REPAIR & MAINTENANCE
C27: Implements | D27: acre | E27: 1.01 | F27: 1 | G27: 1.01
C28: Tractors | D28: acre | E28: 0.18 | F28: 1 | G28: 0.18
B29: INTEREST ON OP. CAP. | D29: acre | E29: 4.01 | F29: 1 | G29: 4.01
A31: TOTAL DIRECT EXPENSES | G31: =SUM(G9:G29) -> 162.664458
A32: FIXED EXPENSES
C33: Implements | D33: acre | E33: 0.8 | F33: 1 | G33: =E33*F33 -> 0.8
C34: Tractors | D34: acre | E34: 1.1 | F34: 1 | G34: 1.1
C35: Prorated Est Cost | D35: acre | E35: 25.99 | F35: 1 | G35: 25.99
A37: TOTAL FIXED EXPENSES | G37: =SUM(G33:G35) -> 27.89
A39: TOTAL SPECIFIED EXPENSES | G39: =G31+G37 -> 190.554458
A41: Note: Cost of production estimates are based on 2012 input prices.
